bitfinex/quotes_ETHUSD_20250107
["timestamp","ask_amount","ask_price","bid_price","bid_amount"]
[1736227699229,0.7845,3668.2,3667.6,0.02726301]
[1736227699387,0.7845,3668.2,3666.9,2.60812527]
[1736227699583,0.7845,3668.2,3667.3,2.72679]
[1736227702303,0.7845,3668.2,3667.4,2.72669]
[1736227702599,0.7845,3668.2,3667.6,2.72654]
[1736227702766,0.7845,3668.2,3667.6,2.75380301]
[1736227703175,0.7845,3668.2,3667.9,2.72635]
[1736227703377,1.13301892,3668.5,3668.1,2.60812527]
[1736227703378,1.94531892,3668.5,3668.1,2.60812527]
[1736227703678,1.13301892,3668.5,3668.3,2.72603]
[1736227704272,0.8123,3668.8,3668.4,2.72598]
[1736227705168,0.8123,3668.8,3667.7,0.185]
[1736227705369,0.8123,3668.8,3667.7,2.79312527]
[1736227705569,0.8123,3668.8,3667.9,1.1411892]
[1736227706382,0.8123,3668.8,3667.9,3.8675092]
[1736227706583,0.8123,3668.8,3667.9,3.89476969]
[1736227707108,0.8123,3668.8,3667.9,2.75358049]
[1736227707276,0.8123,3668.8,3667.9,2.72632]
[1736227707477,0.8123,3668.8,3667.9,2.75358049]
[1736227707807,0.8123,3668.8,3667.8,0.565]
[1736227708009,0.8123,3668.8,3668.0,2.72626]
[1736227709210,0.8123,3668.8,3668.0,2.75351938]
[1736227710412,0.8123,3668.8,3668.0,2.72626]
[1736227711108,0.8123,3668.8,3667.9,2.48492954]
[1736227712414,0.93844142,3668.7,3667.9,0.0075]
[1736227712619,0.7603,3668.6,3667.9,0.0075]
[1736227713105,0.7603,3668.6,3667.9,2.73385]
[1736227713785,0.7603,3668.6,3667.9,4.07759034]
[1736227715334,0.7603,3668.6,3667.9,2.73385]
[1736227715480,0.7603,3668.6,3667.8,2.48492954]
[1736227717832,0.7603,3668.6,3667.8,1.34374034]
[1736227718919,0.7603,3668.6,3667.9,0.02726053]
[1736227719603,0.7603,3668.6,3667.8,4.07016034]
[1736227719988,0.7603,3668.6,3667.9,1.1411892]
[1736227720188,0.7603,3668.6,3667.9,1.16844973]
[1736227721381,0.7603,3668.6,3667.9,1.1411892]
[1736227722293,0.7603,3668.6,3667.8,4.07016034]
[1736227723820,0.7603,3668.6,3667.8,5.21134954]
[1736227724618,0.7603,3668.6,3667.9,0.02726053]
[1736227725019,0.7603,3668.6,3667.8,5.21134954]
[1736227725407,0.7603,3668.6,3667.9,2.75359051]
[1736227726323,0.7603,3668.6,3667.9,3.89477971]
[1736227727429,0.7603,3668.6,3668.0,1.1411892]
[1736227727631,0.7603,3668.6,3668.1,0.02725963]
[1736227727936,0.7603,3668.6,3668.1,2.75345963]
[1736227728222,0.7603,3668.6,3668.2,0.0075]
[1736227728816,0.7603,3668.6,3668.2,2.73361]
[1736227729013,0.7603,3668.6,3668.3,0.02725754]
[1736227730433,0.8189,3668.8,3668.3,0.02725754]
[1736227731635,0.8189,3668.8,3668.3,2.75330754]
[1736227733708,0.8189,3668.8,3668.2,1.1411892]
[1736227734656,0.8189,3668.8,3668.1,2.48492954]
[1736227735434,0.7582,3668.7,3668.1,2.48492954]
[1736227735947,0.7582,3668.7,3667.9,2.72633]
[1736227736910,0.7582,3668.7,3668.0,0.02725964]
[1736227740270,0.7582,3668.7,3667.9,2.72633]
[1736227740667,0.7582,3668.7,3668.0,5.37664491]
[1736227740874,0.7582,3668.7,3668.2,0.015]
[1736227741079,0.7582,3668.7,3668.2,2.76837709]
[1736227742119,1.13301892,3669.1,3668.2,0.015]
[1736227742319,1.13301892,3669.1,3668.4,0.015]
[1736227742560,1.13301892,3669.1,3668.4,0.04225541]
[1736227742940,0.7732,3669.2,3668.4,0.04225541]
[1736227743140,0.7732,3669.2,3668.9,2.60812527]
[1736227744976,0.7732,3669.2,3668.9,0.02725287]
[1736227745181,0.7732,3669.2,3668.7,0.565]
[1736227745730,0.7732,3669.2,3668.7,1.90874034]
[1736227746130,0.7732,3669.2,3668.7,4.63448034]
[1736227746564,0.7732,3669.2,3668.8,0.02725294]
[1736227746763,0.7732,3669.2,3668.9,5.33372527]
[1736227746943,0.7631,3669.5,3669.0,2.76778327]
[1736227747336,0.7631,3669.5,3669.0,2.74053]
[1736227747539,0.7631,3669.5,3669.0,2.7677813]
[1736227748288,0.7631,3669.5,3669.0,2.74053]
[1736227748483,0.7631,3669.5,3669.1,0.02725128]
[1736227748634,0.7631,3669.5,3669.0,2.74053]
[1736227750193,0.7631,3669.5,3669.0,0.015]
[1736227750399,0.7631,3669.5,3669.1,2.72545]
[1736227750687,0.7631,3669.5,3669.1,3.63010687]
[1736227751814,0.7631,3669.5,3669.1,2.72545]
[1736227752334,0.7631,3669.5,3669.0,0.015]
[1736227752762,0.7631,3669.5,3669.0,2.74048]
[1736227752960,0.7631,3669.5,3669.1,3.27544]
[1736227753561,0.7631,3669.5,3669.2,0.0075]
[1736227753866,0.7631,3669.5,3669.2,2.73288]
[1736227754067,0.7823,3669.9,3669.2,2.73288]
[1736227755724,0.7823,3669.9,3669.3,0.02724983]
[1736227758119,0.7823,3669.9,3669.4,2.72523]
[1736227758918,0.7823,3669.9,3669.5,0.02724983]
[1736227759110,0.7823,3669.9,3669.5,2.6353751]
[1736227759408,0.7823,3669.9,3669.5,5.3605151]
[1736227760992,0.7823,3669.9,3669.6,2.72508]
[1736227761201,30.0,3670.0,3669.6,2.72508]
[1736227762011,30.0,3670.0,3669.5,2.60812527]
[1736227763309,30.0,3670.0,3669.6,0.02724796]
[1736227763884,30.0,3670.0,3669.5,2.60812527]
[1736227764099,30.0,3670.0,3669.6,0.02724797]
[1736227768810,30.0,3670.0,3669.5,2.60812527]
[1736227769016,30.0,3670.0,3669.2,0.8014]
[1736227769017,0.8173,3669.9,3669.7,1.17647502]
[1736227778032,30.0,3670.0,3669.7,4.66336502]
[1736227778335,30.0,3670.0,3669.9,1.17647502]
[1736227779937,30.0,3670.0,3669.4,0.55]
[1736227780135,30.7561,3670.0,3669.7,1.17647502]
[1736227781635,30.7561,3670.0,3669.2,1.1411892]
[1736227781636,0.7561,3669.9,3669.2,2.31766422]
[1736227781844,0.7561,3669.9,3669.2,1.17647502]
[1736227782402,2.71757592,3669.9,3669.2,1.17647502]
[1736227782634,2.72495,3669.8,3669.0,2.31766422]
[1736227782848,0.7747,3669.7,3669.2,1.17647502]
[1736227785148,0.7747,3669.7,3668.9,2.60762016]
[1736227787744,0.7747,3669.7,3669.0,0.9049842]
[1736227792948,0.789,3669.6,3669.0,0.9049842]
[1736227795151,0.789,3669.6,3668.7,2.0461734]
[1736227796619,0.789,3669.6,3668.7,0.9049842]
[1736227798554,0.8299,3669.5,3668.7,0.9049842]
[1736227801840,0.7897,3669.4,3668.7,0.9049842]
[1736227802041,0.7897,3669.2,3668.7,0.9049842]
[1736227802265,0.7897,3669.0,3668.7,0.9049842]
[1736227804134,0.7897,3669.0,3668.3,0.9049842]
[1736227805021,0.7989,3668.9,3668.3,2.08238265]
[1736227805222,6.2505,3668.9,3668.3,2.08238265]
[1736227805422,6.2505,3668.9,3668.3,1.17739845]
[1736227806322,6.2505,3668.9,3668.5,1.17739845]
[1736227808583,0.8117,3668.8,3668.2,1.17739845]
[1736227809141,0.8117,3668.8,3668.4,1.17739845]
[1736227810675,6.2633,3668.8,3668.4,1.17739845]
[1736227812883,5.4516,3668.8,3668.6,1.17739845]
[1736227815145,5.4516,3668.8,3668.6,3.90321845]
[1736227817135,5.4516,3668.8,3668.7,7.44936996]
[1736227817342,5.4516,3668.8,3668.7,7.69645807]
[1736227817840,2.72592,3668.8,3668.7,7.69645807]
[1736227818036,0.00024,3668.8,3668.7,7.69645807]
[1736227818241,0.00024,3668.8,3668.7,11.66760404]
[1736227818479,30.0,3670.0,3669.7,2.72501]
[1736227818779,30.0,3670.0,3669.9,1.17739845]
[1736227818951,30.0,3670.0,3669.6,0.9769]
[1736227819150,30.0,3670.0,3669.6,2.789565]
[1736227820343,30.0,3670.0,3669.6,2.81681268]
[1736227820544,30.0,3670.0,3669.6,5.54188268]
[1736227820740,30.0,3670.0,3669.6,5.514635]
[1736227824040,30.0,3670.0,3669.7,2.72501]
[1736227825475,30.0,3670.0,3669.9,2.606565]
[1736227826054,30.0,3670.0,3669.9,5.903925]
[1736227827677,30.0,3670.0,3669.9,8.16184361]
[1736227828481,30.0,3670.0,3669.9,6.80709244]
[1736227829391,30.0,3670.0,3669.9,9.80709244]
[1736227830188,30.0,3670.0,3669.9,8.903925]
[1736227831703,30.0,3670.0,3669.9,10.25728697]
[1736227832859,30.0,3670.0,3669.9,9.80592892]
[1736227833190,30.0,3670.0,3669.9,9.98992892]
[1736227833391,30.0,3670.0,3669.9,6.98242892]
[1736227834472,30.0,3670.0,3669.9,6.080425]
[1736227841094,30.0,3670.0,3669.9,4.64980504]
[1736227844419,30.0,3670.0,3669.9,3.47386]
[1736227844735,30.0,3670.0,3669.9,4.64980504]
[1736227845903,30.0,3670.0,3669.9,4.65730504]
[1736227846201,30.0,3670.0,3669.9,4.64980504]
[1736227846396,30.8323,3670.0,3669.9,1.17594504]
[1736227852302,0.7798,3669.9,3669.3,0.0075]
[1736227852535,0.7798,3669.9,3669.4,1.17594504]
[1736227853063,0.7798,3669.9,3669.3,0.015]
[1736227854800,0.7798,3669.9,3669.5,2.60722725]
[1736227857750,30.0,3670.0,3669.5,2.60722725]
[1736227857938,30.0,3670.0,3669.6,0.02724816]
[1736227858835,30.0,3670.0,3669.5,2.60722725]
[1736227859143,0.7614,3669.9,3669.5,2.60722725]
[1736227860151,30.0,3670.0,3669.5,2.63447555]
[1736227860811,30.0,3670.0,3669.5,2.60722725]
[1736227861211,30.0,3670.0,3669.3,1.36997317]
[1736227861212,0.8094,3669.9,3669.3,1.36997317]
[1736227863154,0.8094,3669.9,3669.4,0.90453309]
[1736227863358,0.8094,3669.9,3669.5,2.60722725]
[1736227863546,0.8094,3669.9,3669.5,2.63447635]
[1736227864257,0.8094,3669.9,3669.6,0.90453309]
[1736227868673,0.8094,3669.9,3669.4,0.90453309]
[1736227872669,0.8094,3669.9,3669.5,0.02724885]
[1736227872850,30.0,3670.0,3669.6,0.565]
[1736227873048,30.0,3670.0,3669.7,0.57724712]
[1736227873775,30.0,3670.0,3669.7,0.02724712]
[1736227875075,30.0,3670.0,3669.8,0.90453309]
[1736227876462,30.0,3670.0,3669.9,0.565]
[1736227877478,30.0,3670.0,3669.9,1.3589]
[1736227877679,30.0,3670.0,3669.9,7.09126]
[1736227877865,30.0,3670.0,3669.9,3.565]
[1736227878053,30.0,3670.0,3669.9,2.60979131]
[1736227882406,30.0,3670.0,3669.9,2.61729131]
[1736227882958,30.0,3670.0,3669.9,1.47703309]
[1736227884196,30.0,3670.0,3669.9,4.53629007]
[1736227885607,30.0,3670.0,3669.9,3.1813169]
[1736227888695,30.0,3670.0,3669.9,6.69152306]
[1736227889002,30.0,3670.0,3669.9,6.6642769]
[1736227890994,30.0,3670.0,3669.9,8.58984467]
[1736227891497,30.0,3670.0,3669.9,5.10688467]
[1736227892710,30.0,3670.0,3669.9,1.46953309]
[1736227895403,30.0,3670.0,3669.9,3.18968169]
[1736227895609,30.0,3670.0,3669.9,8.94178791]
[1736227895808,30.0,3670.0,3669.9,9.70844169]
[1736227896673,30.0,3670.0,3669.9,13.43977556]
[1736227897706,30.0,3670.0,3669.9,11.63314467]
[1736227899112,30.0,3670.0,3669.9,12.86956104]
[1736227901110,30.0,3670.0,3669.9,14.04560547]
[1736227902113,30.0,3670.0,3669.9,12.33344158]
[1736227903728,30.0,3670.0,3669.9,10.52681069]
[1736227905337,30.0,3670.0,3669.9,12.8091891]
[1736227905906,18.40888184,3670.0,3669.9,13.98523353]
[1736227906089,13.44381392,3670.0,3669.9,13.98523353]
[1736227906434,13.44381392,3670.0,3669.9,16.56817068]
[1736227906601,12.08141392,3670.0,3669.9,14.12202068]
[1736227907012,9.51321297,3670.0,3669.9,14.37454895]
[1736227907335,9.51321297,3670.0,3669.9,12.09217054]
[1736227907684,9.51321297,3670.0,3669.9,12.13938339]
[1736227909257,9.51321297,3670.0,3669.9,14.99097331]
[1736227910647,9.51321297,3670.0,3669.9,16.7976042]
[1736227911397,2.90688598,3670.0,3669.9,16.7976042]
[1736227912516,2.90688598,3670.0,3669.9,13.94601428]
[1736227913946,2.90688598,3670.0,3669.9,12.13938339]
[1736227915128,2.90688598,3670.0,3669.9,13.14461428]
[1736227915453,2.90688598,3670.0,3669.9,12.96061428]
[1736227915635,2.90688598,3670.0,3669.9,13.14461428]
[1736227915833,2.90688598,3670.0,3669.9,13.15211428]
[1736227915999,2.90688598,3670.0,3669.9,4.26513715]
[1736227916198,2.90688598,3670.0,3669.9,7.67432498]
[1736227917101,2.90688598,3670.0,3669.9,10.67432498]
[1736227917912,2.90688598,3670.0,3669.9,4.66103309]
[1736227918847,2.90688598,3670.0,3669.9,6.01600626]
[1736227920048,2.90688598,3670.0,3669.9,10.33231603]
[1736227921449,2.90688598,3670.0,3669.9,10.42725428]
[1736227921596,2.90688598,3670.0,3669.9,11.22115428]
[1736227921801,2.90688598,3670.0,3669.9,13.94601428]
[1736227922402,2.90688598,3670.0,3669.9,14.42164024]
[1736227923648,2.90688598,3670.0,3669.9,16.22827113]
[1736227923806,2.90688598,3670.0,3669.9,15.43437113]
[1736227924140,3.69508598,3670.0,3669.9,12.70951113]
[1736227926136,3.69508598,3670.0,3669.9,8.62062339]
[1736227927407,3.69508598,3670.0,3669.9,10.42725428]
[1736227928819,2.90688598,3670.0,3669.9,10.42725428]
[1736227930646,2.90688598,3670.0,3669.9,12.70951113]
[1736227931140,2.90688598,3670.0,3669.9,13.49081113]
[1736227931346,2.90688598,3670.0,3669.9,16.21567113]
[1736227931550,2.90688598,3670.0,3669.9,15.43437113]
[1736227933444,2.90688598,3670.0,3669.9,16.00380211]
[1736227934047,2.90688598,3670.0,3669.9,13.27894211]
[1736227934417,2.90688598,3670.0,3669.9,11.47231122]
[1736227934622,3.15728598,3670.0,3669.9,11.47231122]
[1736227935441,3.15728598,3670.0,3669.9,10.90481498]
[1736227937459,3.15728598,3670.0,3669.9,13.62967498]
[1736227939165,3.15728598,3670.0,3669.9,16.00380211]
[1736227940537,3.15728598,3670.0,3669.9,13.15211428]
[1736227941982,3.15728598,3670.0,3669.9,11.34548339]
[1736227943024,3.15728598,3670.0,3669.9,16.00730796]
[1736227943427,3.15728598,3670.0,3669.9,13.28244796]
[1736227943626,3.15728598,3670.0,3669.9,10.67783083]
[1736227944639,3.15728598,3670.0,3669.9,8.30027085]
[1736227945228,3.15728598,3670.0,3669.9,5.30027085]
[1736227945633,3.15728598,3670.0,3669.9,3.01600626]
[1736227950985,3.15728598,3670.0,3669.9,4.72903206]
[1736227953087,3.15728598,3670.0,3669.9,7.33364919]
[1736227953256,3.15728598,3670.0,3669.9,5.97867602]
[1736227954400,3.15728598,3670.0,3669.9,5.62062339]
[1736227955447,3.15728598,3670.0,3669.9,2.25950626]
[1736227955750,3.15728598,3670.0,3669.9,2.44350626]
[1736227956873,3.15728598,3670.0,3669.9,3.00850626]
[1736227957074,3.15728598,3670.0,3669.9,2.7961037]
[1736227957738,3.98908598,3670.0,3669.9,2.6121037]
[1736227958193,4.38799458,3670.0,3669.9,2.0471037]
[1736227958866,7.11278458,3670.0,3669.9,2.0471037]
[1736227959599,0.8065,3669.9,3669.6,1.14257061]
[1736227959797,0.43626946,3669.8,3669.6,1.14257061]
[1736227960003,0.7518,3669.7,3669.6,1.14257061]
[1736227961065,0.7518,3669.7,3669.4,2.0471037]
[1736227962576,0.7518,3669.7,3669.4,0.90453309]
[1736227963176,3.15728598,3670.0,3669.6,0.0075]
[1736227963177,3.90988598,3670.0,3669.6,0.0075]
[1736227963688,3.90988598,3670.0,3669.7,0.565]
[1736227964000,3.90988598,3670.0,3669.7,0.015]
[1736227964576,3.90988598,3670.0,3669.5,0.55]
[1736227965370,3.90988598,3670.0,3669.8,2.0471037]
[1736227966987,3.90988598,3670.0,3669.6,0.91203309]
[1736227969071,0.7609,3669.9,3669.6,0.91203309]
[1736227969266,0.7609,3669.9,3669.6,0.90453309]
[1736227969472,3.51491,3669.7,3669.6,0.90453309]
[1736227971727,3.51491,3669.7,3669.1,0.90453309]
[1736227974304,0.7899,3669.7,3669.1,0.90453309]
[1736227977028,0.7899,3669.7,3669.1,2.08128209]
[1736227978144,0.7899,3669.7,3669.1,1.176749]
[1736227978442,0.7899,3669.7,3669.4,0.0075]
[1736227981118,0.7899,3669.7,3669.3,0.0075]
[1736227981848,0.7899,3669.7,3669.2,0.5575]
[1736227984624,0.7899,3669.7,3669.1,1.176749]
[1736227985152,0.7899,3669.7,3669.2,0.0075]
[1736227988054,0.7899,3669.7,3669.1,0.0075]
[1736227988240,1.4571126,3669.7,3669.1,1.38146119]
[1736227989051,0.7899,3669.7,3669.1,1.38146119]
[1736227989962,0.7899,3669.7,3669.2,0.91638993]
[1736227991993,0.7899,3669.7,3669.2,2.09313893]
[1736227993260,0.7899,3669.7,3669.3,0.91638993]
[1736227995057,0.7899,3669.7,3669.4,1.176749]
[1736227996380,3.92788598,3670.0,3669.6,1.176749]
[1736227997187,3.15728598,3670.0,3669.9,0.015]
[1736227997600,3.15728598,3670.0,3669.9,0.5725]
[1736227997748,3.15728598,3670.0,3669.9,1.3664]
[1736227998981,3.15728598,3670.0,3669.9,2.28278993]
[1736227999310,3.15728598,3670.0,3669.9,4.88889737]
[1736228001383,3.15728598,3670.0,3669.9,6.26285856]
[1736228001784,3.15728598,3670.0,3669.9,11.98771856]
[1736228002959,3.15728598,3670.0,3669.9,13.81997544]
[1736228003362,3.15728598,3670.0,3669.9,14.35995907]
[1736228004275,3.15728598,3670.0,3669.9,16.0720399]
[1736228010793,3.15728598,3670.0,3669.9,12.52770219]
[1736228015501,3.15728598,3670.0,3669.9,13.66772539]
[1736228018973,3.15728598,3670.0,3669.9,12.23758736]
[1736228022824,3.15728598,3670.0,3669.9,11.09756416]
[1736228025876,3.15728598,3670.0,3669.9,12.80964499]
[1736228027597,3.15728598,3670.0,3669.9,13.38182875]
[1736228029501,3.15728598,3670.0,3669.9,11.09756416]
[1736228031236,3.15728598,3670.0,3669.9,11.28156416]
[1736228033222,3.15728598,3670.0,3669.9,13.11241836]
[1736228034024,3.15728598,3670.0,3669.9,13.25056283]
[1736228034606,3.1500651,3670.0,3669.9,13.25056283]
[1736228041525,3.1500651,3670.0,3669.9,16.67357073]
[1736228043947,3.1500651,3670.0,3669.9,13.25056283]
[1736228044677,3.1500651,3670.0,3669.9,11.41970863]
[1736228046059,3.1500651,3670.0,3669.9,16.67573024]
[1736228047257,3.1500651,3670.0,3669.9,15.88183024]
[1736228047467,3.1500651,3670.0,3669.9,15.88083024]
[1736228047924,3.9371651,3670.0,3669.9,15.00218577]
[1736228048125,3.9371651,3670.0,3669.9,15.18518577]
[1736228048536,3.9371651,3670.0,3669.9,15.74268577]
[1736228048731,3.9371651,3670.0,3669.9,13.91183157]
[1736228049465,3.9371651,3670.0,3669.9,6.45350216]
[1736228049669,3.9371651,3670.0,3669.9,7.08948794]
[1736228050262,3.9371651,3670.0,3669.9,7.22182053]
[1736228050462,3.9371651,3670.0,3669.9,7.21432053]
[1736228050764,3.9371651,3670.0,3669.9,7.22182053]
[1736228051236,3.9371651,3670.0,3669.9,7.03882053]
[1736228051438,3.9371651,3670.0,3669.9,7.76846368]
[1736228051643,3.9371651,3670.0,3669.9,10.05264442]
[1736228052996,3.9371651,3670.0,3669.9,9.48165001]
[1736228053796,3.9371651,3670.0,3669.9,6.48165001]
[1736228054095,4.33088161,3670.0,3669.9,4.01853745]
[1736228054323,4.33088161,3670.0,3669.9,4.00353745]
[1736228055720,0.764,3669.9,3669.7,0.91638993]
[1736228058299,0.764,3669.9,3669.7,0.015]
[1736228059388,1.19477816,3669.9,3669.7,0.015]
[1736228059702,0.43077816,3669.9,3669.6,0.015]
[1736228059902,0.7558,3669.8,3669.6,0.015]
[1736228060495,0.7558,3669.8,3669.5,2.5499306]
[1736228060991,0.7558,3669.8,3669.5,1.37396119]
[1736228061214,0.7558,3669.8,3669.5,2.5499306]
[1736228062706,0.7558,3669.8,3669.5,1.17596941]
[1736228064411,0.7558,3669.8,3669.7,4.47347941]
[1736228064703,3.1500651,3670.0,3669.9,0.0075]
[1736228065003,3.1500651,3670.0,3669.9,1.74846941]
[1736228066292,3.1500651,3670.0,3669.9,4.47332941]
[1736228066606,3.1500651,3670.0,3669.9,6.75670217]
[1736228068030,3.1500651,3670.0,3669.9,7.89866115]
[1736228068326,3.1500651,3670.0,3669.9,5.17380115]
[1736228069238,3.9122651,3670.0,3669.9,4.18083174]
[1736228069448,3.9122651,3670.0,3669.9,2.84481851]
[1736228070116,3.9122651,3670.0,3669.9,2.66181851]
[1736228070304,3.9122651,3670.0,3669.9,1.74846941]
[1736228074636,3.1500651,3670.0,3669.9,1.74846941]
[1736228075834,3.1500651,3670.0,3669.9,7.50057675]
[1736228076019,3.1500651,3670.0,3669.9,7.47332941]
[1736228077126,3.1500651,3670.0,3669.9,11.46936737]
[1736228077612,3.03508532,3670.0,3669.9,13.43633678]
[1736228077814,2.72708532,3670.0,3669.9,12.26036737]
[1736228078816,2.72708532,3670.0,3669.9,10.54718104]
[1736228079021,2.72708532,3670.0,3669.9,11.97624832]
[1736228079217,2.72708532,3670.0,3669.9,12.10922022]
[1736228080015,2.72708532,3670.0,3669.9,13.93512697]
[1736228083212,2.72708532,3670.0,3669.9,21.69512697]
[1736228083945,5.32e-06,3670.0,3669.9,21.69512697]
[1736228084650,1.13301892,3672.4,3671.0,0.0225]
[1736228084651,2.72317,3672.2,3671.0,0.0225]
[1736228084812,0.7777,3671.4,3671.3,0.5725]
[1736228085626,0.7777,3671.4,3671.3,0.0225]
[1736228094878,2.72319,3672.2,3671.3,0.0225]
[1736228095186,0.833,3672.1,3671.3,0.0225]
[1736228095385,1.188619,3672.1,3671.3,0.0225]
[1736228095686,0.833,3672.0,3671.3,0.0225]
[1736228097377,0.762,3671.9,3671.3,0.0225]
[1736228098013,0.762,3671.9,3671.3,0.5725]
[1736228101290,0.762,3671.9,3671.3,0.0075]
[1736228102021,0.7753,3671.5,3670.8,0.55084064]
[1736228102183,0.7753,3671.3,3670.7,0.183]
[1736228102538,2.72383,3671.3,3670.7,0.183]
[1736228102678,0.7584,3671.2,3670.8,0.0075]
[1736228103048,0.7584,3671.2,3670.8,0.015]
[1736228103334,0.7584,3671.1,3670.5,1.32253509]
[1736228103485,0.7584,3671.1,3670.6,0.565]
[1736228104017,0.7584,3671.1,3670.6,1.74045461]
[1736228105079,0.7584,3671.1,3670.6,0.565]
[1736228107298,0.7537,3671.0,3670.6,0.0075]
[1736228107505,0.7537,3671.0,3670.3,0.183]
[1736228107710,0.7537,3671.0,3670.4,0.5725]
[1736228108113,0.7537,3671.0,3670.4,0.0225]
[1736228108424,0.7537,3671.0,3670.4,0.5725]
[1736228108738,0.7943,3670.9,3670.4,0.5725]
[1736228109718,0.7943,3670.9,3670.4,0.015]
[1736228110105,0.7943,3670.9,3670.3,0.198]
[1736228113934,0.7943,3670.9,3670.5,0.0075]
[1736228114889,0.7943,3670.9,3670.3,0.183]
[1736228115317,0.7848,3670.7,3670.4,0.015]
[1736228118828,0.7848,3670.7,3670.4,0.565]
[1736228119150,2.72379,3671.4,3670.5,0.0075]
[1736228119444,0.8302,3671.3,3670.5,0.0075]
[1736228122776,0.8302,3671.3,3670.7,0.015]
[1736228123982,0.8302,3671.3,3670.6,0.015]
[1736228126783,0.8302,3671.3,3670.7,0.9138169]
[1736228128847,0.8302,3671.3,3670.8,0.015]
[1736228129010,0.8302,3671.3,3670.8,1.7408271]
[1736228129716,0.7566,3671.5,3671.2,1.1758271]
[1736228129917,1.88961892,3671.9,3671.4,1.1758271]
[1736228130135,0.7566,3671.9,3671.4,1.1758271]
[1736228131796,0.7566,3671.9,3671.5,0.015]
[1736228132031,0.7566,3671.9,3671.6,1.1758271]
[1736228133339,0.8093,3672.4,3671.8,1.1758271]
[1736228134411,3.53231,3672.4,3671.6,1.1908271]
[1736228137039,3.53231,3672.4,3671.6,0.015]
[1736228140852,0.8093,3672.4,3671.6,0.015]
[1736228141036,2.72309,3672.3,3671.6,0.015]
[1736228142478,0.8093,3672.4,3671.6,0.015]
[1736228147029,2.72309,3672.3,3671.6,0.015]
[1736228148651,0.7547,3672.2,3671.6,0.015]
[1736228157545,0.353224,3672.4,3671.6,0.015]
[1736228157745,3.55615,3672.5,3671.6,0.015]
[1736228158045,2.72303,3672.4,3671.6,0.015]
[1736228159641,2.7231,3672.3,3671.6,0.015]
[1736228162873,0.8332,3672.5,3671.6,0.015]
[1736228163171,2.7232,3672.2,3671.6,0.015]
[1736228163747,0.8005,3672.1,3671.3,1.36886542]
[1736228163935,0.8005,3671.9,3671.3,1.36886542]
[1736228164135,2.72352,3671.8,3671.2,1.13953509]
[1736228164871,2.72354,3671.7,3671.2,1.13953509]
[1736228165763,2.72354,3671.7,3671.1,0.015]
[1736228169098,0.8005,3671.9,3671.1,0.015]
[1736228169999,3.52392,3671.9,3671.1,0.015]
[1736228170502,2.72346,3671.8,3671.1,0.015]
[1736228171403,0.4699264,3671.8,3671.0,2.14271985]
[1736228171609,0.7765,3671.7,3671.0,1.37111985]
[1736228171771,2.72372,3671.5,3671.0,1.37111985]
[1736228172469,0.8078,3671.4,3671.0,1.37111985]
[1736228172665,2.72383,3671.3,3671.0,1.37111985]
[1736228172869,1.98310404,3671.4,3671.0,1.37111985]
[1736228172870,3.1946334,3671.2,3671.0,1.37111985]
[1736228173477,0.4706934,3671.2,3671.0,1.37111985]
[1736228173681,0.4706934,3671.2,3670.8,0.91445612]
[1736228173682,3.527,3671.0,3670.8,0.91445612]
[1736228174806,3.527,3671.0,3670.3,0.91445612]
[1736228176805,3.527,3671.0,3670.3,2.08976016]
[1736228178718,3.527,3671.0,3670.3,1.17530404]
[1736228181474,2.72389,3671.3,3670.5,1.17530404]
[1736228181678,3.54809,3671.3,3670.6,0.7659]
[1736228182610,0.8242,3671.3,3670.7,0.015]
[1736228183719,0.8242,3671.3,3670.7,1.19030404]
[1736228183931,0.7639,3671.6,3670.9,1.17530404]
[1736228184098,0.7639,3671.6,3671.0,0.7888]
[1736228184298,0.7639,3671.6,3671.1,1.17530404]
[1736228185101,2.72353,3671.7,3671.1,1.17530404]
[1736228185423,0.7928,3671.9,3671.1,1.17530404]
[1736228185623,2.72346,3671.8,3671.1,1.17530404]
[1736228190842,0.7781,3672.1,3671.1,1.17530404]
[1736228191016,2.72355,3671.7,3671.0,0.7888]
[1736228193021,2.72355,3671.7,3671.1,1.17530404]
[1736228193633,2.72361,3671.6,3671.1,1.17530404]
[1736228196424,0.5032254,3672.0,3671.1,1.17530404]
[1736228196425,2.72347,3671.8,3671.1,1.17530404]
[1736228198948,0.5032254,3672.0,3671.1,1.17530404]
[1736228199136,2.72354,3671.7,3671.1,1.17530404]
[1736228210457,2.72363,3671.6,3671.1,1.17530404]
[1736228210858,2.72363,3671.6,3671.1,0.0075]
[1736228211523,2.72346,3671.8,3671.1,1.18280404]
[1736228211851,4.63440892,3672.1,3671.0,0.7888]
[1736228211852,1.13301892,3672.1,3671.6,0.0075]
[1736228212060,3.85631892,3672.1,3671.7,0.7592]
[1736228213641,3.02823785,3672.4,3671.7,1.93450404]
[1736228213642,2.72308,3672.4,3671.7,1.93450404]
[1736228213843,1.13301892,3672.6,3671.7,1.93450404]
[1736228214051,2.72316,3672.2,3671.7,0.7592]
[1736228214233,2.72326,3672.1,3671.7,0.7592]
[1736228215558,2.72332,3672.0,3671.7,0.7592]
[1736228215755,2.72339,3671.9,3671.5,0.565]
[1736228216665,1.99460404,3672.4,3671.5,0.565]
[1736228216868,2.72325,3672.1,3671.5,0.565]
[1736228221031,1.99460404,3672.4,3671.5,0.565]
[1736228221542,2.72331,3672.0,3671.5,0.565]
[1736228222495,1.99460404,3672.4,3671.4,0.7902]
[1736228222496,2.72352,3671.8,3671.4,0.7902]
[1736228222700,1.13301892,3672.5,3671.2,1.13953509]
[1736228222701,0.7788,3671.7,3671.2,1.13953509]
[1736228222833,0.7632,3671.9,3671.2,1.89273509]
[1736228223145,2.72329,3672.1,3671.2,1.13953509]
[1736228223146,3.48703,3671.3,3671.2,1.13953509]
[1736228223668,3.50127,3671.1,3671.0,1.13953509]
[1736228223962,4.67657404,3671.1,3671.0,1.13953509]
[1736228224169,3.50135,3671.0,3670.9,2.64e-06]
[1736228224461,3.49037,3670.7,3670.6,2.27907019]
[1736228224660,0.7661,3670.6,3670.5,1.95298317]